bitfinex-derivatives/quotes_ETHF0:USTF0_20250704
["timestamp","ask_amount","ask_price","bid_price","bid_amount"]
[1751667017755,0.79852,2504.0,2503.9,3.2078]
[1751667017956,0.79855,2503.9,2503.8,0.79857]
[1751667018152,0.79855,2503.9,2503.7,0.7986]
[1751667018355,0.7986,2503.8,2503.6,0.79862]
[1751667018658,38.29457,2503.9,2503.8,0.79858]
[1751667019260,38.29457,2503.9,2503.5,4.5741]
[1751667019261,0.79859,2503.8,2503.7,0.7986]
[1751667020056,38.29456,2503.9,2503.8,0.79858]
[1751667020662,0.79865,2503.6,2503.5,3.2078]
[1751667022468,2.68801,2503.8,2503.2,4.00655]
[1751667022660,0.79871,2503.4,2503.2,4.00655]
[1751667022865,0.79874,2503.3,2503.2,4.00655]
[1751667023165,37.475,2503.4,2502.9,3.2078]
[1751667023360,38.8877,2503.4,2502.9,3.2078]
[1751667023667,0.79884,2503.0,2502.9,3.2078]
[1751667023861,37.474,2503.0,2502.6,3.2078]
[1751667024066,37.474,2503.0,2502.8,0.79889]
[1751667024265,0.79889,2502.9,2502.7,0.79894]
[1751667024571,0.79888,2502.9,2502.7,0.79892]
[1751667024772,1.51368,2502.9,2502.7,0.79892]
[1751667024966,0.7989,2502.8,2502.6,3.2078]
[1751667025669,0.7989,2502.8,2502.6,4.00676]
[1751667025859,1.51369,2502.9,2502.7,0.79894]
[1751667026059,0.7148,2502.9,2502.7,0.79894]
[1751667026260,1.51368,2502.9,2502.7,0.79894]
[1751667026570,0.7148,2502.9,2502.6,3.2078]
[1751667026869,2.91899,2502.9,2502.7,0.79894]
[1751667027271,2.91899,2502.9,2502.8,0.7989]
[1751667027469,0.79891,2502.8,2502.7,0.79893]
[1751667028068,2.91899,2502.9,2502.7,0.79893]
[1751667028672,0.7989,2502.8,2502.7,0.79893]
[1751667028971,2.91899,2502.9,2502.8,0.7989]
[1751667029171,2.1201,2502.9,2502.8,0.7989]
[1751667029367,57.52,2503.3,2502.9,1.99713]
[1751667029568,0.79852,2504.0,2503.4,1.99672]
[1751667029774,37.523,2503.9,2503.8,0.79855]
[1751667030474,37.523,2503.9,2503.7,0.7986]
[1751667030673,0.79858,2503.8,2503.6,0.79863]
[1751667031075,37.523,2503.9,2503.5,0.79867]
[1751667031374,0.79866,2503.6,2503.4,0.79869]
[1751667031576,37.516,2503.5,2503.4,0.79869]
[1751667033476,38.3147,2503.5,2503.3,0.79873]
[1751667033674,38.9727,2503.5,2503.3,0.79873]
[1751667034177,38.9727,2503.5,2503.0,1.3906]
[1751667034378,38.97268,2503.5,2503.4,0.79871]
[1751667036679,0.79871,2503.4,2503.2,4.00656]
[1751667036978,38.174,2503.5,2502.8,3.2078]
[1751667037174,0.79878,2503.2,2502.8,3.2078]
[1751667037370,39.5449,2503.5,2502.8,3.2078]
[1751667037371,37.448,2503.1,2502.8,3.2078]
[1751667037576,37.448,2503.1,2503.0,0.79884]
[1751667037778,38.24681,2503.1,2503.0,0.79884]
[1751667038380,0.79884,2503.0,2502.9,0.79885]
[1751667039475,37.448,2503.1,2502.8,3.2078]
[1751667039476,37.448,2503.1,2503.0,0.79884]
[1751667039878,0.79881,2503.1,2503.0,0.79884]
[1751667040078,38.22281,2503.1,2503.0,0.79884]
[1751667040281,37.424,2503.1,2503.0,0.79884]
[1751667040476,11.642,2503.2,2503.1,0.79881]
[1751667040674,49.059,2503.2,2503.1,0.79881]
[1751667041382,49.85778,2503.2,2503.1,0.79881]
[1751667042083,0.79878,2503.2,2503.1,0.79881]
[1751667042284,38.20778,2503.2,2503.1,0.79881]
[1751667042883,38.20778,2503.2,2502.9,1.4192]
[1751667042884,0.79885,2503.0,2502.9,0.79886]
[1751667044387,0.79887,2502.9,2502.8,4.00669]
[1751667044586,38.21287,2502.9,2502.8,3.2078]
[1751667045085,38.21287,2502.9,2502.8,4.0067]
[1751667046488,37.414,2502.9,2502.8,4.0067]
[1751667046686,38.21287,2502.9,2502.8,4.0067]
[1751667047182,3.2078,2503.5,2502.8,8.2078]
[1751667047387,4.00649,2503.5,2503.4,0.79871]
[1751667047687,42.59138569,2503.5,2503.4,0.79871]
[1751667047888,0.79871,2503.4,2503.3,0.79873]
[1751667048088,1.99460569,2503.4,2503.3,0.79873]
[1751667048387,1.19589569,2503.4,2503.3,0.79873]
[1751667049387,38.58889569,2503.4,2503.3,0.79873]
[1751667050988,38.58977381,2503.4,2503.3,0.79873]
[1751667051482,1.19677381,2503.4,2503.3,0.79873]
[1751667051687,38.54577381,2503.4,2503.3,0.79873]
[1751667052887,39.34448381,2503.4,2503.3,0.79873]
[1751667053579,38.54577381,2503.4,2503.3,0.79873]
[1751667053778,39.34448381,2503.4,2503.3,0.79873]
[1751667053988,38.54577381,2503.4,2503.3,0.79873]
[1751667054885,38.50777381,2503.4,2503.3,0.79873]
[1751667055489,39.30648381,2503.4,2503.3,0.79873]
[1751667055688,38.50777381,2503.4,2503.1,3.2078]
[1751667055889,0.79878,2503.2,2503.1,4.00658]
[1751667056189,1.99555381,2503.2,2503.1,4.00658]
[1751667056393,1.99555381,2503.2,2503.1,3.2078]
[1751667056881,0.79878,2503.2,2503.1,3.2078]
[1751667057280,1.99554565,2503.2,2503.1,3.2078]
[1751667057792,0.79884,2503.0,2502.9,0.79885]
[1751667058089,39.28466793,2503.0,2502.9,0.79885]
[1751667060595,0.79887,2502.9,2502.8,4.00669]
[1751667060794,1.99569793,2502.9,2502.8,4.00669]
[1751667060984,1.99569793,2502.9,2502.8,3.2078]
[1751667061396,1.19682793,2502.9,2502.8,0.7989]
[1751667062089,1.85282793,2502.9,2502.8,0.7989]
[1751667062498,2.65169793,2502.9,2502.8,0.7989]
[1751667062689,3.33119793,2502.9,2502.8,0.7989]
[1751667063996,0.79893,2502.8,2502.7,0.79893]
[1751667064495,1.9977871,2502.8,2502.7,0.79893]
[1751667065296,0.79895,2502.7,2502.6,0.79895]
[1751667065497,38.01295,2502.7,2502.6,0.79895]
[1751667066093,38.41342158,2502.7,2502.6,0.79895]
[1751667066501,39.21235158,2502.7,2502.6,0.79895]
[1751667067296,0.79897,2502.6,2502.5,4.00678]
[1751667068198,0.79897,2502.6,2502.5,0.79898]
[1751667069395,0.79901,2502.5,2502.3,1.2966]
[1751667069600,0.79899,2502.6,2502.5,0.79899]
[1751667069796,1.99797408,2502.6,2502.5,0.79899]
[1751667070200,1.19898408,2502.6,2502.5,4.00679]
[1751667070401,3.8572,2503.3,2503.1,0.79881]
[1751667070591,1.19646726,2503.2,2503.1,0.79881]
[1751667070795,37.207,2503.3,2503.2,0.79878]
[1751667070997,38.40393961,2503.3,2503.2,0.79878]
[1751667073898,1.19693961,2503.3,2503.2,0.79878]
[1751667074099,38.36793961,2503.3,2503.2,0.79878]
[1751667076800,0.79879,2503.2,2503.1,0.79879]
[1751667076996,0.79881,2503.1,2503.0,0.79882]
[1751667077399,0.79884,2503.0,2502.9,3.2078]
[1751667077997,0.6745,2503.1,2503.0,0.79884]
[1751667078196,1.47331,2503.1,2503.0,0.79884]
[1751667078610,1.47331,2503.1,2502.7,1.3017]
[1751667078611,0.79885,2503.0,2502.9,0.79885]
[1751667078905,1.47333,2503.1,2503.0,0.79884]
[1751667079305,0.6745,2503.1,2502.7,1.3017]
[1751667079499,0.6745,2503.1,2503.0,0.79884]
[1751667079701,1.47331,2503.1,2503.0,0.79884]
[1751667079904,0.79886,2503.0,2502.9,0.79885]
[1751667080302,1.47333,2503.1,2503.0,0.79884]
[1751667083406,0.79884,2503.0,2502.9,4.00665]
[1751667083700,1.99440387,2503.0,2502.9,3.2078]
[1751667083905,2.69890387,2503.0,2502.9,3.2078]
[1751667084901,1.90006387,2503.0,2502.9,4.00667]
[1751667085108,0.79871,2503.5,2503.4,0.79871]
[1751667085410,0.79872,2503.4,2503.3,0.79872]
[1751667085706,1.99435212,2503.4,2503.3,0.79872]
[1751667087011,1.99434212,2503.4,2503.3,0.79872]
[1751667088312,1.19563212,2503.4,2503.3,0.79872]
[1751667088810,1.99434212,2503.4,2503.3,0.79872]
[1751667089815,39.09834212,2503.4,2503.3,0.79872]
[1751667091614,37.90271,2503.4,2503.3,0.79872]
[1751667093015,3.2078,2503.9,2503.8,0.79858]
[1751667093312,1.19441375,2503.9,2503.8,0.79858]
[1751667093516,5.35496,2504.2,2504.1,0.79849]
[1751667093813,43.61866043,2504.2,2504.1,0.79849]
[1751667094009,47.82020043,2504.2,2503.6,1.9533]
[1751667094216,0.79855,2503.9,2503.8,0.79856]
[1751667094412,37.062,2503.9,2503.8,0.79856]
[1751667094712,37.86055,2503.9,2503.8,0.79856]
[1751667095416,37.86055,2503.9,2503.8,0.79858]
[1751667095417,37.86057,2503.9,2503.8,0.79858]
[1751667096318,0.79861,2503.8,2503.7,0.7986]
[1751667096517,37.062,2503.9,2503.8,0.79858]
[1751667096718,37.044,2503.9,2503.6,2.6527]
[1751667096921,18.19577,2504.2,2504.1,0.79849]
[1751667097110,56.42888298,2504.2,2504.1,0.79849]
[1751667097515,0.7985,2504.1,2504.0,0.7985]
[1751667097816,1.99061298,2504.1,2504.0,0.7985]
[1751667098621,0.79858,2503.9,2503.8,0.79857]
[1751667099226,0.79859,2503.8,2503.7,0.79859]
[1751667099426,0.79863,2503.7,2503.6,0.79863]
[1751667099724,0.79853,2504.0,2503.9,0.79853]
[1751667099924,39.01973265,2504.0,2503.9,0.79853]
[1751667100124,0.79856,2503.9,2503.8,0.79856]
[1751667100524,37.029,2504.0,2503.5,5.20448]
[1751667100525,37.82754,2504.0,2503.9,0.79855]
[1751667100824,39.01879902,2504.0,2503.9,0.79855]
[1751667101622,1.19125902,2504.0,2503.9,0.79855]
[1751667101824,38.22125902,2504.0,2503.9,0.79855]
[1751667102221,37.82852,2504.0,2503.9,0.79855]
[1751667103427,0.79856,2503.9,2503.8,0.79856]
[1751667103628,0.79865,2503.6,2503.5,4.00647]
[1751667103820,37.80565,2503.6,2503.5,4.00647]
[1751667104025,37.80565,2503.6,2503.5,4.00648]
[1751667105128,37.007,2503.6,2503.2,3.2078]
[1751667105329,2.20288,2503.5,2503.4,0.7987]
[1751667105529,38.4042,2503.5,2503.4,0.7987]
[1751667113732,4.5655,2503.9,2503.8,0.79858]
[1751667114036,1.99588,2504.6,2504.2,0.79846]
[1751667114037,40.96924,2504.3,2504.2,0.79846]
[1751667114238,1.9902669,2504.3,2504.2,0.79846]
[1751667114434,38.9772669,2504.3,2504.2,0.79846]
[1751667116835,38.1788269,2504.3,2504.1,0.79847]
[1751667117035,2.6940869,2504.2,2503.9,3.2078]
[1751667117231,0.7038,2504.2,2504.1,0.79849]
[1751667117433,1.89578141,2504.2,2504.1,0.79849]
[1751667117836,2.69424141,2504.2,2504.1,0.79849]
[1751667118039,1.89578141,2504.2,2503.3,5.92056]
[1751667118239,0.79853,2504.0,2503.9,0.79854]
[1751667118438,38.95051141,2504.0,2503.9,0.79854]
[1751667118642,39.61511141,2504.0,2503.9,0.79854]
[1751667118842,39.61511141,2504.0,2503.8,0.79856]
[1751667119042,38.42313,2504.0,2503.8,0.79856]
[1751667119343,0.79855,2503.9,2503.8,0.79856]
[1751667120443,37.6246,2504.0,2503.3,2.71276]
[1751667120444,37.6246,2504.0,2503.3,5.92056]
[1751667120644,0.79859,2503.8,2503.7,0.7986]
[1751667121144,0.79857,2503.9,2503.8,0.79858]
[1751667121347,1.98971576,2503.9,2503.8,0.79858]
[1751667123241,3.30821576,2503.9,2503.8,0.79858]
[1751667125441,1.19114576,2503.9,2503.8,0.79858]
[1751667126345,1.98969576,2503.9,2503.8,0.79858]
[1751667126648,1.19114576,2503.9,2503.8,0.79858]
[1751667127240,1.98969576,2503.9,2503.8,0.79858]
[1751667127447,1.19114576,2503.9,2503.8,0.79858]
[1751667127749,1.98969576,2503.9,2503.8,0.79858]
[1751667128440,3.18753576,2503.9,2503.5,0.79867]
[1751667128644,0.79863,2503.7,2503.6,0.79865]
[1751667128846,38.90377576,2503.7,2503.6,0.79865]
[1751667129048,39.55147576,2503.7,2503.6,0.79865]
[1751667130250,38.75284576,2503.7,2503.6,0.79865]
[1751667130549,38.10414576,2503.7,2503.6,0.79865]
[1751667130941,1.19114576,2503.7,2503.6,0.79865]
[1751667131152,36.913,2504.2,2504.1,0.79849]
[1751667131453,38.1062741,2504.2,2504.1,0.79849]
[1751667133154,1.1932741,2504.2,2504.1,0.79849]
[1751667133353,38.1072741,2504.2,2504.1,0.79849]
[1751667134756,38.1072741,2504.2,2503.9,3.2078]
[1751667134950,0.79852,2504.0,2503.9,4.00634]
[1751667135155,0.79852,2504.0,2503.9,0.79854]
[1751667136556,0.79852,2504.0,2503.9,4.00634]
[1751667136861,0.79862,2503.7,2503.6,3.2078]
[1751667137160,0.79862,2503.7,2503.6,0.79862]
[1751667137960,37.70959,2503.8,2503.7,0.79862]
[1751667138255,38.90158474,2503.8,2503.7,0.79862]
[1751667138454,38.10300474,2503.8,2503.7,0.79862]
[1751667139956,0.79862,2503.7,2503.3,3.2078]
[1751667140257,0.79862,2503.7,2503.5,0.79866]
[1751667140460,39.0014,2503.8,2503.3,3.2078]
[1751667140656,39.0014,2503.8,2503.5,0.79867]
[1751667141156,0.79865,2503.6,2503.5,0.79867]
[1751667143361,0.79864,2503.7,2503.6,0.79865]
[1751667144258,38.38201,2503.8,2503.7,0.79862]
[1751667144457,1.19332026,2503.8,2503.7,0.79862]
[1751667144661,38.38921,2504.1,2504.0,0.79852]
[1751667144862,39.58243574,2504.1,2503.9,0.79853]
[1751667145059,1.19322574,2504.0,2503.9,0.79855]
[1751667145566,1.99174574,2504.0,2503.9,0.79855]
[1751667146666,1.99174574,2504.0,2503.8,0.79856]
[1751667146963,1.99174574,2504.0,2503.7,2.0354]
[1751667146964,0.79852,2504.0,2503.9,0.79855]
[1751667147163,1.99227283,2504.0,2503.9,0.79855]
[1751667147763,1.19375283,2504.0,2503.6,3.2078]
[1751667147963,0.79857,2503.9,2503.7,0.79862]
[1751667148165,0.6672,2503.8,2503.7,0.79859]
[1751667149666,1.46578,2503.8,2503.7,0.79859]
[1751667149965,0.6672,2503.8,2503.7,0.79862]
[1751667150464,0.6672,2503.8,2503.6,3.2078]
[1751667150669,0.79871,2503.4,2503.3,3.2078]
[1751667151161,1.99278209,2503.4,2503.3,3.2078]
[1751667151362,1.99699,2503.2,2502.7,3.2078]
[1751667151559,0.7989,2502.8,2502.7,3.2078]
[1751667151758,0.79889,2502.9,2502.7,4.00674]
[1751667151959,0.7989,2502.8,2502.7,4.00674]
[1751667152163,0.7989,2502.8,2502.7,3.2078]
[1751667152556,0.79889,2502.9,2502.7,4.00672]
[1751667152765,39.6553,2503.1,2502.7,3.2078]
[1751667152766,0.7989,2502.8,2502.7,3.2078]
[1751667153266,0.7989,2502.8,2502.6,0.79894]
[1751667153467,0.79889,2502.9,2502.7,0.79894]
[1751667153674,39.6553,2503.1,2502.8,0.7989]
[1751667153966,1.99061047,2503.0,2502.8,0.7989]
[1751667154170,0.79887,2502.9,2502.8,0.7989]
[1751667154468,0.79887,2502.9,2502.7,4.00671]
[1751667155371,0.6778,2503.0,2502.7,4.00671]
[1751667155767,0.7989,2502.8,2502.7,3.2078]
[1751667156464,0.7989,2502.8,2502.7,4.00674]
[1751667157367,0.7989,2502.8,2502.7,3.2078]
[1751667157570,0.7989,2502.8,2502.7,4.00674]
[1751667157869,0.7989,2502.8,2502.7,0.79894]
[1751667158171,0.6778,2503.0,2502.4,3.9117]
[1751667158369,0.6778,2503.0,2502.8,0.7989]
[1751667158570,0.79888,2502.9,2502.8,0.7989]
[1751667159267,1.47666,2503.0,2502.5,1.3936]
[1751667159568,14.6448,2503.2,2503.1,0.79881]
[1751667159569,3.2078,2503.2,2503.1,0.79881]
[1751667159775,11.44,2503.3,2503.2,0.79878]
[1751667160274,48.354,2503.3,2503.2,0.79878]
[1751667160477,49.15274,2503.3,2503.2,0.79878]
[1751667161073,48.354,2503.3,2503.2,0.79878]
[1751667161374,49.15274,2503.3,2503.2,0.79878]
[1751667161673,0.79878,2503.2,2503.1,3.2078]
[1751667162073,0.79881,2503.1,2503.0,1.48262]
[1751667162476,0.79881,2503.1,2503.0,0.79882]
[1751667162675,0.79884,2503.0,2502.8,3.2078]
[1751667162876,0.79887,2502.9,2502.8,3.2078]
[1751667163173,0.79885,2503.0,2502.9,0.79885]
[1751667163380,37.71283,2503.1,2503.0,0.79884]
[1751667163576,0.79885,2503.0,2502.9,0.79885]
[1751667164178,37.71283,2503.1,2503.0,0.79884]
[1751667164381,0.79884,2503.0,2502.9,0.79885]
[1751667165776,36.914,2503.1,2502.8,3.2078]
[1751667165777,0.79887,2502.9,2502.8,4.00668]
[1751667166974,0.79887,2502.9,2502.8,4.00669]
[1751667167174,0.79887,2502.9,2502.8,3.2078]
[1751667167373,1.51217,2502.9,2502.8,3.2078]
[1751667167975,2.94937,2502.9,2502.8,3.2078]
[1751667169479,0.7989,2502.8,2502.7,0.79893]
[1751667170181,2.94938,2502.9,2502.8,0.7989]
[1751667170382,1.51218,2502.9,2502.8,0.7989]
[1751667170880,1.51217,2502.9,2502.8,0.7989]
[1751667171080,0.7133,2502.9,2502.8,0.7989]
[1751667171477,1.51217,2502.9,2502.8,0.7989]
[1751667171682,0.79892,2502.8,2502.7,0.79892]
[1751667171980,0.7133,2502.9,2502.8,0.7989]
[1751667172383,1.51217,2502.9,2502.8,0.7989]
[1751667172580,0.79892,2502.8,2502.7,0.79892]
[1751667172984,1.5122,2502.9,2502.8,0.7989]
[1751667173183,0.79891,2502.8,2502.7,0.79891]
[1751667173887,0.7133,2502.9,2502.5,3.2078]
[1751667174188,0.79893,2502.8,2502.7,0.79892]
[1751667175379,0.79896,2502.7,2502.6,0.79895]
[1751667176184,0.79892,2502.8,2502.7,0.79891]
[1751667177482,0.79895,2502.7,2502.6,0.79895]
[1751667178779,0.79897,2502.6,2502.5,4.00678]
[1751667179086,0.79897,2502.6,2502.5,0.799]
[1751667183887,37.71196,2502.7,2502.6,0.79897]
[1751667184188,0.79899,2502.6,2502.5,0.79899]
[1751667184584,0.79892,2502.8,2502.7,0.79893]
[1751667184788,38.90390503,2502.8,2502.7,0.79893]
[1751667185885,1.19498503,2502.8,2502.7,0.79893]
[1751667186088,38.10498503,2502.8,2502.7,0.79893]
[1751667186690,38.90388503,2502.8,2502.7,0.79893]
[1751667189387,38.10498503,2502.8,2502.7,0.79893]
[1751667190093,38.90388503,2502.8,2502.7,0.79893]
[1751667191192,0.79897,2502.6,2502.5,4.00679]
[1751667191397,0.79896,2502.7,2502.6,0.79896]
[1751667191599,1.99544578,2502.7,2502.6,0.79896]
[1751667192700,0.79897,2502.6,2502.5,4.00679]
[1751667192999,2.66515578,2502.6,2502.5,4.00679]
[1751667193901,2.66515578,2502.6,2502.5,3.2078]
[1751667194196,1.86618578,2502.6,2502.2,3.2078]
[1751667194398,0.79906,2502.3,2502.2,3.2078]
[1751667194797,1.99596112,2502.3,2502.2,3.2078]
[1751667196900,1.99596112,2502.3,2502.2,4.00689]
[1751667197100,38.10090112,2502.3,2502.2,4.00689]
[1751667197301,38.89996112,2502.3,2502.2,4.00689]
[1751667197503,38.10090112,2502.3,2502.2,4.00689]
[1751667197704,38.89996112,2502.3,2502.2,4.00689]
[1751667197903,38.89996112,2502.3,2502.2,3.2078]
[1751667198103,0.79916,2502.0,2501.9,3.2078]
[1751667198308,0.79914,2502.1,2502.0,0.79912]
[1751667198604,0.79912,2502.2,2502.1,0.79911]
[1751667199204,37.70309,2502.3,2502.2,0.79909]
[1751667199509,0.79911,2502.2,2502.1,0.7991]
[1751667200401,0.79913,2502.1,2502.0,2.11044]
[1751667204809,0.79912,2502.2,2502.1,0.79911]
[1751667208311,37.70309,2502.3,2502.2,0.79909]
[1751667208507,11.437,2502.5,2502.4,0.79903]
[1751667213611,12.236,2502.5,2502.4,0.79903]
[1751667213910,11.437,2502.5,2502.4,0.79903]
[1751667215516,3.8775,2502.6,2502.5,0.799]
[1751667215717,40.0988,2502.6,2502.5,0.799]
[1751667215912,3.2078,2502.6,2502.5,0.799]
[1751667217818,3.2078,2502.6,2502.5,5.799]
[1751667220416,3.2078,2502.6,2502.5,0.799]
[1751667222222,3.2078,2502.6,2502.5,5.799]
[1751667225023,2.25979,2502.6,2502.5,5.799]
[1751667225223,0.69895,2502.6,2502.5,5.799]
[1751667225424,1e-05,2502.6,2502.5,5.799]
[1751667227628,0.6865,2503.3,2503.2,0.79878]
[1751667230731,57.547,2503.8,2503.7,0.79862]
[1751667230930,2.16533,2504.0,2503.9,0.79855]
[1751667231229,2.56054679,2504.0,2503.4,1.99671]
[1751667231430,0.79859,2503.8,2503.7,0.7986]
[1751667231629,0.79858,2503.8,2503.7,0.7986]
[1751667231831,2.12017,2503.9,2503.7,0.7986]
[1751667232130,0.79858,2503.8,2503.7,0.7986]
[1751667232430,2.12018,2503.8,2503.7,0.7986]
[1751667233131,0.79862,2503.7,2503.2,1.9969]
[1751667233331,0.6852,2503.6,2503.5,0.79868]
[1751667233824,2.0397,2503.6,2503.5,0.79868]
[1751667234025,2.83835,2503.6,2503.4,0.79869]
[1751667234221,2.0586,2503.5,2503.4,0.79869]
[1751667240239,0.7041,2503.5,2503.4,0.79869]
[1751667251244,1.50278,2503.5,2503.4,0.79869]
[1751667251650,0.79875,2503.3,2503.2,0.79876]
[1751667252047,0.79878,2503.2,2503.0,0.79882]
[1751667252245,2.16788,2503.2,2503.0,0.79882]
[1751667252445,2.16788,2503.2,2502.8,0.79888]
[1751667252446,0.79885,2503.0,2502.8,0.79888]
[1751667252646,0.6856,2502.9,2502.8,0.79888]
[1751667252845,2.0547,2502.9,2502.8,0.79888]
[1751667253750,0.6856,2502.9,2502.8,0.79888]
[1751667254148,0.6503,2503.1,2503.0,0.79884]
[1751667256150,1.44911,2503.1,2503.0,0.79884]
[1751667256357,0.6503,2503.1,2503.0,0.79884]
[1751667263863,2.0231,2503.1,2503.0,0.79884]
[1751667273367,0.6503,2503.1,2503.0,0.79884]
[1751667273567,0.7049,2503.3,2503.2,0.79878]
[1751667273764,2.3862061,2503.9,2503.2,1.99695]
[1751667274069,2.3862061,2503.9,2503.8,0.79858]
[1751667274568,3.1010061,2504.0,2503.8,0.79858]
[1751667274769,3.1010061,2504.0,2503.9,0.79855]
[1751667274770,0.7148,2504.0,2503.9,0.79855]
[1751667275669,14.5985461,2504.6,2504.4,0.79837]
[1751667275871,14.5985461,2504.6,2504.3,0.79842]
[1751667275872,1.3753,2504.4,2504.3,0.79842]
[1751667276173,2.3862061,2504.7,2504.6,0.79833]
[1751667276373,0.6901,2504.7,2504.6,0.79833]
[1751667276875,0.6901,2504.7,2504.1,4.01738]
[1751667277075,0.6901,2504.7,2504.5,0.79834]
[1751667277375,1.4884,2504.7,2504.5,0.79834]
[1751667277776,0.79838,2504.5,2504.3,0.79841]
[1751667278271,0.6938,2504.4,2504.3,0.79841]
[1751667280775,0.79851,2504.1,2503.7,0.7059]
[1751667280975,1.358,2504.0,2503.9,0.79852]
[1751667284679,2.15652,2504.0,2503.8,0.79856]
[1751667284879,1.358,2504.0,2503.9,0.79855]
[1751667285079,1.358,2504.0,2503.8,0.79856]
[1751667285779,1.358,2504.0,2503.9,0.79855]
[1751667286580,2.15652,2504.0,2503.9,0.79855]
[1751667287577,1.358,2504.0,2503.9,0.79855]
[1751667287778,2.15652,2504.0,2503.9,0.79855]
[1751667289381,1.358,2504.0,2503.9,0.79855]
[1751667289884,1.358,2504.0,2503.8,0.79858]
[1751667290280,1.358,2504.0,2503.9,0.79855]
[1751667291084,2.15652,2504.0,2503.9,0.79855]
[1751667292185,1.358,2504.0,2503.9,0.79855]
[1751667298589,0.79846,2504.2,2504.1,0.79849]
[1751667298788,0.6818,2504.2,2504.1,0.79849]
[1751667299188,1.48026,2504.2,2504.1,0.79849]
[1751667299388,0.6818,2504.2,2504.1,0.79849]
[1751667300989,1.48026,2504.2,2504.1,0.79849]
[1751667301292,2.0013,2504.2,2504.1,0.79849]
[1751667301486,3.9808229,2504.2,2504.1,0.79849]
[1751667302390,0.7985,2504.1,2504.0,0.7985]
[1751667302791,2.118,2504.1,2504.0,0.7985]
[1751667303292,0.79863,2503.7,2503.6,0.79862]
[1751667303488,1.9936,2504.0,2503.3,1.99686]
[1751667303693,1.18259135,2503.9,2503.8,0.79856]
[1751667304286,1.98114135,2503.9,2503.8,0.79856]
[1751667304491,1.18259135,2503.9,2503.8,0.79856]
[1751667304684,1.98114135,2503.9,2503.8,0.79856]
[1751667305284,0.7986,2503.8,2503.7,0.7986]
[1751667305493,0.79863,2503.7,2503.6,0.79863]
[1751667305694,1.5113,2503.8,2503.7,0.79862]
[1751667305883,0.79866,2503.6,2503.5,0.79866]
[1751667306192,1.98176223,2503.6,2503.5,0.79866]
[1751667306394,1.18310223,2503.6,2503.5,0.79866]
[1751667307396,1.98175223,2503.6,2503.5,0.79866]
[1751667308296,1.981602,2503.6,2503.5,0.79866]
[1751667308488,1.182952,2503.6,2502.8,0.6525]
[1751667308689,1.182952,2503.6,2501.9,3.2078]
[1751667308690,13.29112377,2503.5,2502.9,0.6936]
[1751667308994,0.7988,2503.2,2503.1,0.7988]
[1751667310388,0.79881,2503.1,2503.0,0.79882]
[1751667314692,0.79884,2503.0,2502.9,0.79885]
[1751667314893,0.79894,2502.7,2502.6,0.79894]
[1751667315494,1.46193,2502.8,2502.7,0.79893]
[1751667316197,1.4619,2502.8,2502.7,0.79893]
[1751667316493,0.663,2502.8,2502.7,0.79893]
[1751667317496,1.4619,2502.8,2502.7,0.79893]
[1751667317696,0.663,2502.8,2502.7,0.79893]
[1751667318697,11.406,2503.2,2502.5,1.9975]
[1751667319002,0.79885,2503.0,2502.9,0.79885]
[1751667319696,0.79885,2503.0,2502.6,1.4137]
[1751667319901,0.79891,2502.8,2502.7,0.79891]
[1751667321305,0.79895,2502.7,2502.6,0.79895]
[1751667321899,0.79893,2502.8,2502.7,0.79892]
[1751667323805,0.79896,2502.7,2502.6,0.79894]
[1751667324007,1.99719,2502.9,2502.5,0.79899]
[1751667324206,1.3995,2502.8,2502.5,0.79899]
[1751667324605,0.79901,2502.5,2502.4,0.79901]
[1751667325205,0.79905,2502.4,2502.3,0.79904]
[1751667325409,0.79905,2502.4,2502.3,0.79906]
[1751667326206,0.79902,2502.5,2502.4,0.79902]
[1751667326615,0.79902,2502.5,2502.1,1.4324]
[1751667326616,0.79904,2502.4,2502.3,0.79904]
[1751667327511,0.79909,2502.3,2502.2,0.79908]
[1751667328311,0.7007,2502.6,2502.0,0.6641]
[1751667328513,0.79904,2502.4,2502.3,0.79904]
[1751667328712,0.79902,2502.5,2502.4,0.79903]
[1751667329912,0.79903,2502.4,2502.3,0.79904]
[1751667330512,0.79902,2502.5,2502.4,0.79903]
[1751667330713,0.79903,2502.4,2502.3,0.79904]
[1751667330913,0.799,2502.5,2502.3,0.79904]
[1751667331212,0.799,2502.5,2502.4,0.79903]
[1751667331615,0.799,2502.5,2502.3,0.79904]
[1751667331815,0.799,2502.5,2502.4,0.79903]
[1751667335615,0.799,2502.5,2502.3,0.79904]
[1751667335915,0.799,2502.5,2502.4,0.79903]
[1751667336112,0.799,2502.5,2502.3,0.79904]
[1751667336312,0.799,2502.5,2502.4,0.79903]
[1751667337212,0.7007,2502.6,2502.5,0.799]
[1751667337612,0.6754,2502.7,2502.6,0.79897]
[1751667337915,1.3333,2503.1,2502.7,0.79893]
[1751667337916,0.6552,2503.0,2502.7,0.79893]
[1751667338111,0.7989,2502.8,2502.7,0.79893]
[1751667338415,1.98671369,2502.8,2502.7,0.79893]
[1751667338616,1.18781369,2502.8,2502.4,2.0734]
[1751667338817,0.79897,2502.6,2502.5,0.79898]
[1751667339815,0.79895,2502.7,2502.6,0.79895]
[1751667340010,1.98750494,2502.7,2502.6,0.79895]
[1751667340212,0.79898,2502.6,2502.5,0.79898]
[1751667340717,1.46288,2502.6,2502.5,0.79898]
[1751667340925,0.6639,2502.6,2502.5,0.79898]